bitfinex/quotes_ETHUSD_20241106
["timestamp","ask_amount","ask_price","bid_price","bid_amount"]
[1730923256154,0.7623235,2685.5,2684.1,0.01]
[1730923256450,0.7694,2685.8,2684.2,0.01]
[1730923257038,0.7694,2685.8,2682.4,0.3721]
[1730923257039,0.7694,2685.8,2684.0,0.01]
[1730923257225,0.7694,2685.8,2683.8,0.01]
[1730923257425,0.55,2685.5,2683.9,0.7775]
[1730923259125,0.55,2685.5,2684.0,0.58245051]
[1730923259327,0.7775,2685.4,2684.1,0.8076]
[1730923259506,0.7775,2685.4,2684.1,0.7976]
[1730923260405,0.7775,2685.4,2684.1,0.8076]
[1730923260603,0.7775,2685.4,2684.4,0.01]
[1730923260839,0.7775,2685.4,2684.5,0.8135]
[1730923261447,0.7775,2685.4,2684.6,0.8135]
[1730923262547,0.8168,2686.5,2684.8,0.7837]
[1730923262848,0.8168,2686.5,2685.4,0.7737]
[1730923262849,0.8135,2686.2,2685.4,0.7737]
[1730923263145,3.99477275,2687.3,2685.7,0.7737]
[1730923263350,0.7737,2686.4,2685.7,0.7737]
[1730923263572,0.7737,2686.4,2686.0,0.7737]
[1730923264071,0.66827967,2687.2,2686.0,0.7737]
[1730923264371,0.7737,2687.2,2686.0,0.7737]
[1730923265327,3.7737,2687.2,2686.0,0.7737]
[1730923266771,0.7737,2687.2,2686.0,0.7737]
[1730923266971,0.7737,2687.2,2686.3,0.7906]
[1730923268233,3.7737,2687.2,2686.3,0.7906]
[1730923268577,0.58368327,2687.1,2686.3,0.7906]
[1730923269833,0.55,2687.0,2686.3,0.7906]
[1730923270133,0.58368327,2687.1,2683.5,1.89357905]
[1730923270134,0.55,2686.8,2685.5,0.7951]
[1730923271089,3.55,2686.8,2685.5,0.7951]
[1730923271253,0.7794,2686.9,2685.5,0.7951]
[1730923271454,0.7737,2687.2,2685.5,0.8051]
[1730923271659,0.7737,2687.2,2685.9,0.01]
[1730923271967,0.7737,2687.2,2686.3,0.7951]
[1730923272148,0.7737,2687.2,2686.0,0.01]
[1730923272149,0.7737,2687.2,2686.5,0.8318]
[1730923273590,3.7737,2687.2,2686.5,0.8318]
[1730923273966,3.7737,2687.2,2685.6,0.7919]
[1730923274989,3.7737,2687.2,2685.8,0.01]
[1730923274990,0.7737,2687.2,2685.8,0.01]
[1730923275290,0.58368327,2687.1,2685.9,0.7919]
[1730923275496,0.7737,2687.2,2685.9,0.7919]
[1730923275797,0.7737,2687.2,2685.9,0.8019]
[1730923275951,0.7737,2687.2,2686.0,0.815]
[1730923276869,0.7737,2687.2,2686.1,0.01]
[1730923277070,3.7737,2687.2,2686.2,0.805]
[1730923277278,3.0,2687.2,2686.2,0.805]
[1730923277795,3.50631327,2687.2,2686.2,0.805]
[1730923278253,0.828,2687.1,2686.2,0.805]
[1730923279191,0.55,2687.0,2686.2,0.805]
[1730923279505,0.55,2686.8,2685.5,0.7614]
[1730923280299,0.54465654,2686.8,2685.5,0.7614]
[1730923281468,0.54465654,2686.8,2684.9,0.818]
[1730923281469,0.7927,2686.7,2684.9,0.818]
[1730923281669,0.8276,2686.6,2684.9,0.818]
[1730923281967,0.8276,2686.3,2684.9,0.818]
[1730923282192,0.55,2686.0,2684.9,0.818]
[1730923282966,4.69197438,2686.0,2684.7,0.58222291]
[1730923283196,0.55,2685.3,2684.7,1e-08]
[1730923283406,3.55,2685.3,2684.7,1e-08]
[1730923283567,3.55,2685.3,2684.0,0.7724]
[1730923283568,0.55,2685.1,2684.0,0.7724]
[1730923283979,0.55,2684.9,2684.0,0.7724]
[1730923284165,0.43281,2685.2,2684.0,0.7724]
[1730923284368,0.55,2685.2,2684.0,0.7724]
[1730923285183,0.8056,2685.3,2684.0,0.7724]
[1730923285891,5.31984568,2685.9,2684.0,0.7724]
[1730923286098,1.3747,2685.8,2684.0,0.7724]
[1730923286716,0.8247,2685.8,2684.0,0.7924]
[1730923287018,0.8247,2685.8,2683.2,0.01]
[1730923287019,0.31445457,2685.8,2684.6,0.7697]
[1730923287179,0.7642,2686.1,2684.6,0.7797]
[1730923287374,0.06461484,2685.7,2684.6,0.7797]
[1730923287601,0.06461484,2685.7,2684.6,0.7697]
[1730923287786,1.16972824,2686.4,2684.8,0.01]
[1730923287986,0.0646102,2685.6,2684.9,0.758]
[1730923288197,1.16972824,2686.4,2684.9,0.768]
[1730923288374,1.12075596,2686.6,2685.1,0.01]
[1730923288575,1.12075596,2686.6,2685.2,0.758]
[1730923289115,0.06460715,2686.9,2685.5,0.01]
[1730923289411,2.82615895,2687.2,2685.6,0.7651]
[1730923289412,0.57092321,2687.2,2685.6,0.7651]
[1730923289575,0.3439056,2687.1,2685.6,0.7651]
[1730923289774,0.3439056,2687.1,2685.6,0.7751]
[1730923290489,0.3439056,2687.1,2685.6,0.7651]
[1730923291625,0.7588,2686.9,2685.6,0.7651]
[1730923291925,0.55,2686.8,2685.6,0.7651]
[1730923292638,0.55,2686.6,2685.6,0.7651]
[1730923293900,0.7588,2686.5,2685.6,0.7651]
[1730923294348,0.36267509,2686.7,2685.6,0.7651]
[1730923294500,3.0,2686.6,2685.6,0.7651]
[1730923294833,0.36267509,2686.7,2685.6,0.7651]
[1730923295336,3.42065649,2687.1,2685.6,0.7651]
[1730923295337,1.1027056,2687.1,2685.6,0.7651]
[1730923295502,3.42065649,2687.1,2685.6,0.7651]
[1730923295700,1.1027056,2687.1,2685.6,0.7651]
[1730923296407,0.3439056,2687.1,2685.6,0.7751]
[1730923297704,0.3439056,2687.1,2685.8,0.01]
[1730923298749,0.33439056,2687.0,2685.8,0.01]
[1730923299644,0.33439056,2687.0,2685.7,0.02]
[1730923299797,0.33439056,2687.0,2685.8,0.7755]
[1730923300450,0.55,2686.9,2685.8,0.7755]
[1730923301153,0.33439056,2687.0,2685.8,0.7755]
[1730923303925,0.7832,2686.9,2685.8,0.7755]
[1730923304141,0.55,2686.8,2685.8,0.7755]
[1730923304655,0.55,2686.5,2685.8,0.7755]
[1730923304954,0.355,2686.4,2685.8,0.7755]
[1730923305153,0.55,2686.7,2685.8,0.7755]
[1730923307755,0.55,2686.8,2685.8,0.7755]
[1730923308456,0.7832,2686.9,2685.8,0.7755]
[1730923309571,0.55,2686.8,2685.8,0.7755]
[1730923310537,0.55,2686.9,2685.8,0.7755]
[1730923311432,0.55,2686.5,2685.8,0.7755]
[1730923311638,0.58749005,2686.4,2685.8,0.7755]
[1730923313037,3.58749005,2686.4,2685.8,0.7755]
[1730923313384,5.91315365,2686.4,2685.8,0.7755]
[1730923313549,5.91315365,2686.4,2685.1,0.7926]
[1730923313550,0.55,2686.3,2685.1,0.7926]
[1730923313755,5.91315365,2686.4,2685.1,0.7926]
[1730923313756,0.7971,2686.0,2685.1,0.7926]
[1730923313951,3.0,2685.8,2685.1,0.7926]
[1730923314152,0.55,2685.7,2685.1,0.7926]
[1730923314540,2.3256636,2685.9,2685.1,0.7926]
[1730923314840,3.0,2686.1,2685.1,0.7926]
[1730923315039,0.5971979,2686.0,2685.1,0.7926]
[1730923315461,5.3256636,2686.3,2685.1,0.7926]
[1730923315667,5.3256636,2686.3,2685.1,0.8026]
[1730923316416,2.91315365,2686.4,2685.1,0.8126]
[1730923316630,2.3256636,2686.4,2685.1,0.8126]
[1730923317399,2.3256636,2686.5,2685.4,0.7737]
[1730923317579,2.3256636,2686.6,2685.7,0.7737]
[1730923317781,3.23256636,2686.5,2685.7,0.7737]
[1730923318019,0.23256636,2686.5,2685.7,0.7737]
[1730923321117,2.3256636,2686.7,2685.8,0.01]
[1730923321304,2.3256636,2686.8,2685.9,0.8108]
[1730923321516,0.23256636,2686.7,2685.9,0.8108]
[1730923322027,2.3256636,2686.4,2685.9,0.8108]
[1730923322228,5.3256636,2686.3,2685.9,0.8108]
[1730923322431,5.3256636,2686.2,2685.9,0.8108]
[1730923322811,2.3256636,2686.2,2685.6,0.8214]
[1730923322998,3.53256636,2686.1,2685.6,0.8214]
[1730923323841,5.85822996,2686.1,2685.6,0.8214]
[1730923323992,3.53256636,2686.1,2685.6,0.8214]
[1730923324197,0.53256636,2686.1,2685.6,0.8214]
[1730923325008,3.0,2686.0,2685.6,0.8214]
[1730923325229,0.585823,2685.9,2685.6,0.8214]
[1730923326223,4.3005,2685.8,2684.8,0.771]
[1730923326445,2.32887369,2685.7,2684.8,0.771]
[1730923326736,3.0,2685.6,2684.8,0.771]
[1730923326904,0.53288737,2685.5,2684.8,0.771]
[1730923327295,3.0,2685.8,2684.8,0.781]
[1730923328207,3.0,2685.8,2684.8,0.771]
[1730923328412,5.32887369,2685.8,2684.8,0.771]
[1730923328742,3.0,2685.8,2684.8,0.771]
[1730923328896,5.91469669,2685.9,2684.8,0.771]
[1730923329100,3.0,2685.7,2684.8,0.771]
[1730923329338,2.92034336,2685.8,2685.0,0.788]
[1730923329339,3.59146967,2685.8,2685.0,0.788]
[1730923329698,5.92034336,2685.8,2685.0,0.788]
[1730923330041,2.32887369,2685.9,2685.0,0.788]
[1730923330342,2.32887369,2686.1,2685.4,0.7594]
[1730923330496,2.32887369,2686.0,2685.4,0.7594]
[1730923330698,2.32887369,2685.9,2685.4,0.7594]
[1730923330910,3.23288737,2685.8,2685.4,0.7594]
[1730923331230,5.56176106,2685.8,2685.4,0.7594]
[1730923331431,2.32887369,2685.7,2685.4,0.7594]
[1730923331633,5.32887369,2685.7,2685.4,0.7594]
[1730923332142,5.32887369,2685.6,2685.4,0.7594]
[1730923332344,0.83288737,2685.5,2685.4,0.7594]
[1730923332500,2.32887369,2685.6,2685.4,0.7594]
[1730923333315,2.32887369,2685.5,2685.4,0.7594]
[1730923334338,2.32887369,2685.6,2685.4,0.7594]
[1730923335113,5.32887369,2685.7,2685.4,0.7594]
[1730923335418,2.32887369,2685.7,2685.4,0.7594]
[1730923335623,2.32887369,2685.9,2685.4,0.7594]
[1730923335854,2.32887369,2686.0,2685.4,0.7594]
[1730923337043,0.7594,2685.9,2685.4,0.7594]
[1730923337211,3.7594,2685.9,2685.4,0.7594]
[1730923337546,0.7594,2685.9,2685.4,0.7594]
[1730923337751,0.7594,2685.9,2685.8,0.8201]
[1730923337951,2.32887369,2686.3,2685.9,0.8301]
[1730923338244,2.32887369,2686.3,2685.9,0.8401]
[1730923338245,0.7594,2686.3,2685.9,0.8401]
[1730923338825,0.7594,2686.3,2685.9,0.8301]
[1730923339216,2.32887369,2686.7,2686.0,4.15329489]
[1730923339525,1.488535,2686.6,2686.1,0.8355]
[1730923339910,1.488535,2686.6,2686.3,0.8255]
[1730923340216,2.32887369,2686.9,2686.3,0.8255]
[1730923340217,2.32887369,2687.0,2686.3,0.8255]
[1730923340416,2.32887369,2686.9,2686.3,0.8255]
[1730923340626,0.8255,2686.9,2686.6,0.01]
[1730923340855,0.8255,2686.9,2686.7,0.7845]
[1730923341149,4.39200643,2687.3,2686.7,0.7845]
[1730923341354,0.7845,2687.2,2686.7,0.7845]
[1730923341552,1.31491798,2687.2,2686.7,0.7845]
[1730923342117,4.31491798,2687.2,2686.7,0.7845]
[1730923342556,1.31491798,2687.2,2686.7,0.7845]
[1730923343629,1.31491798,2687.2,2686.7,0.8045]
[1730923343826,0.7845,2687.2,2686.7,0.8045]
[1730923344223,0.7845,2687.2,2687.0,0.7723]
[1730923345078,2.06313274,2687.3,2687.0,0.7723]
[1730923345558,2.83543274,2687.3,2687.0,0.7723]
[1730923351289,2.83543274,2687.3,2686.7,0.01]
[1730923351564,3.28354327,2687.2,2686.7,0.01]
[1730923351782,0.8205,2687.1,2686.7,0.01]
[1730923353248,3.14460031,2687.1,2686.7,0.01]
[1730923353471,3.0,2687.0,2686.7,0.01]
[1730923354167,1.3168,2686.9,2685.4,1.1941653]
[1730923354386,3.0,2686.6,2685.4,1.2041653]
[1730923354565,0.5873252,2686.5,2685.4,0.8164]
[1730923354742,1.3168,2686.4,2685.4,0.8064]
[1730923354928,4.3168,2686.4,2685.4,0.8064]
[1730923355338,0.55,2686.2,2685.4,0.8064]
[1730923355544,0.5873252,2686.1,2685.4,0.8064]
[1730923356177,0.5873252,2686.1,2684.8,4.16329489]
[1730923356178,0.7516,2686.0,2684.9,0.7561]
[1730923356538,3.7516,2686.0,2684.9,0.7561]
[1730923357072,6.07485205,2686.0,2684.9,0.7561]
[1730923357272,0.66621772,2685.9,2684.9,0.7561]
[1730923358287,0.5873252,2686.1,2685.2,0.01]
[1730923358444,0.7933,2686.3,2685.3,0.8156]
[1730923358892,0.7933,2686.3,2685.4,0.01]
[1730923360784,0.7933,2686.3,2685.3,0.8156]
[1730923360785,0.7933,2686.3,2685.3,0.8096]
[1730923361864,0.7588,2686.5,2685.4,0.01]
[1730923362086,0.3082379,2686.4,2685.4,0.01]
[1730923362604,0.7588,2686.5,2685.5,0.01]
[1730923363805,0.7588,2686.5,2685.6,0.7821]
[1730923364309,2.32325533,2686.7,2685.6,0.7821]
[1730923365033,2.71046456,2686.9,2684.8,3.38799906]
[1730923365034,0.7664,2686.5,2685.2,0.01]
[1730923365172,0.55,2686.4,2685.1,0.79]
[1730923365376,2.87325533,2686.4,2685.1,0.79]
[1730923365672,0.7664,2686.2,2685.1,0.79]
[1730923365922,0.60896553,2686.1,2685.1,0.79]
[1730923366424,2.93222086,2686.1,2685.1,0.79]
[1730923366776,0.60896553,2686.1,2685.1,0.79]
[1730923367913,2.93255868,2686.1,2685.1,0.79]
[1730923368071,3.85075116,2686.1,2685.1,0.79]
[1730923368268,0.46171512,2686.0,2685.1,0.79]
[1730923368512,0.55,2685.8,2684.3,0.01]
[1730923368741,0.55,2685.8,2684.5,0.7852]
[1730923368742,0.8261,2685.7,2684.5,0.7852]
[1730923368944,0.31496932,2685.6,2684.9,0.7852]
[1730923369511,0.8261,2685.7,2684.9,0.7852]
[1730923369724,0.91131603,2685.9,2684.9,0.7852]
[1730923369918,0.8047,2685.9,2684.9,0.7852]
[1730923370138,0.8047,2685.9,2684.9,0.7952]
[1730923372140,0.8047,2685.9,2684.4,0.58182473]
[1730923372141,0.8249,2685.6,2684.4,0.59182473]
[1730923372306,3.8249,2685.6,2684.4,0.59182473]
[1730923372624,0.61484932,2685.5,2684.4,0.59182473]
[1730923375946,0.7874,2685.3,2684.4,0.58182473]
[1730923376276,0.55,2685.2,2684.4,0.58182473]
[1730923376946,0.55,2685.1,2684.4,0.58182473]
[1730923377150,0.55,2684.7,2684.4,0.58182473]
[1730923377539,0.7923,2684.6,2683.5,0.8202]
[1730923377746,0.55,2684.3,2683.4,0.97083678]
[1730923378061,0.55,2684.1,2683.4,0.58263334]
[1730923379076,0.55,2683.9,2682.9,0.8202]
[1730923379286,0.55,2683.7,2682.9,0.58276871]
[1730923380475,0.3423,2683.8,2682.9,0.58276871]
[1730923381091,3.0,2684.1,2682.9,0.58276871]
[1730923381255,0.71432949,2684.0,2682.6,0.01]
[1730923381461,0.71432949,2684.0,2682.7,0.58281969]
[1730923381788,0.21432949,2684.0,2682.7,0.59281969]
[1730923381998,0.9273997,2684.1,2682.7,0.59281969]
[1730923382281,0.9273997,2684.1,2682.7,0.58281969]
[1730923382282,4.14329489,2683.4,2682.7,0.58281969]
[1730923382496,4.14329489,2683.0,2681.4,0.01]
[1730923382698,0.55,2682.8,2681.4,0.01]
[1730923383195,3.55,2682.5,2681.2,0.8007]
[1730923383484,0.55,2682.3,2681.3,0.01]
[1730923383905,0.55,2682.1,2680.9,0.773]
[1730923384047,0.7742,2682.0,2680.9,0.773]
[1730923384380,0.55,2681.9,2680.6,0.773]
[1730923385545,0.06454982,2681.8,2680.6,0.773]
[1730923385894,3.55,2681.7,2680.6,0.783]
[1730923386044,0.77578447,2681.6,2680.6,0.783]
[1730923386264,0.7611,2681.5,2680.6,0.783]
[1730923388494,0.7611,2681.5,2680.6,0.773]
[1730923388660,0.7611,2681.5,2680.6,0.783]
[1730923389064,0.7611,2681.5,2680.6,0.793]
[1730923389264,0.7611,2681.5,2680.6,0.783]
[1730923389760,0.7611,2681.5,2680.6,0.773]
[1730923389961,0.7611,2681.5,2680.6,0.783]
[1730923390360,0.7611,2681.5,2680.6,0.773]
[1730923390560,0.7611,2681.5,2680.3,0.7866]
[1730923390987,0.55,2681.4,2680.3,0.7966]
[1730923391360,0.55,2681.4,2680.3,0.7866]
[1730923391559,0.55,2681.4,2680.0,0.01]
[1730923391560,3.7913,2681.1,2680.0,0.7526]
[1730923391864,0.7913,2680.9,2679.9,4.14329489]
[1730923392187,0.7913,2681.4,2680.4,0.01]
[1730923393800,0.7913,2681.4,2680.5,0.8034]
[1730923393985,0.55,2681.3,2680.1,0.7654]
[1730923394158,0.55,2681.3,2680.1,1.25626949]
[1730923394359,0.55,2681.3,2680.2,0.01]
[1730923395485,0.8033,2681.2,2680.1,0.7554]
[1730923395902,0.91472386,2681.5,2679.7,1.14500423]
[1730923395903,4.14329489,2680.6,2679.7,1.14500423]
[1730923396121,3.41432949,2680.5,2679.7,0.757]
[1730923396286,0.8033,2680.4,2679.7,0.757]
[1730923397177,0.8033,2680.4,2679.4,0.8218]
[1730923397711,0.8033,2680.4,2679.4,0.8118]
[1730923397913,0.97176295,2680.3,2679.0,0.8127]
[1730923398127,3.7518,2680.1,2679.0,0.8127]
[1730923398279,3.0,2679.7,2678.9,0.38798853]
[1730923398476,0.7518,2679.6,2678.2,0.8327]
[1730923398680,0.37518,2679.5,2678.2,0.8327]
[1730923398879,3.7518,2679.3,2678.0,0.01]
[1730923399317,4.14329489,2679.0,2677.9,0.8127]
[1730923399522,0.7528,2678.8,2677.9,0.8227]
[1730923399893,0.7528,2679.4,2678.3,0.7704]
[1730923400098,3.7528,2679.7,2678.6,0.01]
[1730923400293,0.37528,2679.6,2678.6,0.01]
[1730923401209,0.37528,2679.6,2678.4,0.01]
[1730923401397,0.37528,2679.6,2678.2,0.7404]
[1730923401612,4.14329489,2679.4,2678.2,0.7404]
[1730923401809,0.7528,2679.2,2678.2,0.7404]
[1730923401991,0.37528,2679.1,2678.2,0.7404]
[1730923402389,3.7528,2679.5,2678.2,0.7404]
[1730923402626,1.3028,2679.2,2678.2,0.7404]
[1730923402835,1.3028,2679.2,2677.6,0.1303253]
[1730923402836,3.0,2678.5,2677.6,0.1303253]
[1730923402991,0.7172625,2677.7,2677.6,0.1303253]
[1730923404829,0.7172625,2677.7,2677.6,0.9007253]
[1730923406594,0.33631595,2677.7,2677.6,0.9007253]
[1730923406795,0.7557,2679.5,2677.8,0.8079]
[1730923407001,0.7557,2679.5,2678.1,0.8079]
[1730923407232,1.493022,2679.6,2678.1,0.8079]
[1730923407445,1.493022,2679.6,2678.2,0.55]
[1730923407741,1.493022,2679.6,2678.4,3.0]
[1730923407897,1.7178942,2679.6,2678.5,0.38079]
[1730923408231,1.7178942,2679.6,2678.3,0.8079]
[1730923409637,0.7557,2679.4,2678.3,0.8079]
[1730923409798,1.493022,2679.6,2678.3,0.8079]
[1730923411267,1.493022,2679.6,2678.7,0.7833]
[1730923411732,0.7882,2679.5,2678.7,0.7833]
[1730923411927,0.7882,2679.5,2678.6,0.58365342]
[1730923411928,0.2281222,2679.4,2678.6,0.58365342]
[1730923413631,0.55,2679.3,2678.6,0.58365342]
[1730923414032,0.2281222,2679.4,2678.6,0.58365342]
[1730923414640,0.2281222,2679.4,2678.7,0.8154]
[1730923414944,3.7882,2679.5,2678.7,0.8154]
[1730923415844,1.493022,2679.6,2678.7,0.8154]
[1730923417234,1.493022,2679.6,2678.7,4.15329489]
[1730923417436,1.493022,2679.6,2679.1,4.15329489]
[1730923417649,0.8333,2681.2,2679.3,0.7589]
[1730923417855,1.492441,2680.7,2679.4,0.37589]
[1730923418047,4.14329489,2680.5,2679.3,0.7589]
[1730923418275,0.8333,2680.4,2679.3,0.7589]
[1730923419272,0.49765949,2680.3,2679.3,0.7589]
[1730923419476,2.325741,2680.7,2679.3,0.7589]
[1730923420875,0.55,2680.4,2679.3,0.7589]
[1730923421348,3.55,2680.4,2679.3,0.7589]
[1730923422673,0.7896,2680.3,2679.0,0.7621]
[1730923423865,0.55,2680.2,2679.0,0.7621]
[1730923424063,0.7996,2680.3,2679.0,0.7621]
[1730923424064,3.55,2680.0,2679.0,0.7621]
[1730923424241,0.355,2679.9,2679.0,0.7621]
[1730923424656,3.0,2679.8,2679.0,0.7621]
[1730923425205,3.0,2679.8,2678.1,0.01]
[1730923425206,0.55,2678.7,2677.3,0.7621]
[1730923425484,0.55,2678.5,2677.4,0.5836954]
[1730923425653,0.7996,2678.6,2677.7,1.62796008]
[1730923425845,0.55,2678.5,2677.7,1.62796008]
[1730923426045,0.7896,2678.6,2677.4,0.5836954]
[1730923426845,0.55,2678.3,2677.4,0.5836954]
[1730923428007,0.01,2678.2,2677.4,0.5836954]
[1730923428145,0.8317,2678.1,2677.4,0.5836954]
[1730923428345,3.8317,2677.6,2675.6,0.8092]
[1730923428546,0.38317,2677.5,2675.6,0.8092]
[1730923428772,0.8317,2677.6,2675.7,4.899222]
[1730923428954,0.8317,2677.6,2675.8,0.8289]
[1730923430384,0.56,2677.5,2675.8,0.8289]
[1730923431996,0.7575,2677.2,2675.8,0.8289]
[1730923432283,3.7575,2677.2,2675.8,0.8289]
[1730923432444,0.55,2677.0,2675.8,0.8289]
[1730923432782,0.7575,2676.9,2675.8,0.8289]
[1730923433372,3.56,2676.8,2675.1,3.51]
[1730923433586,0.55,2676.6,2675.2,0.7878]
[1730923434451,0.7575,2676.3,2675.2,0.7878]
[1730923434653,0.43075,2676.2,2674.9,0.1303253]
[1730923435252,0.55,2676.1,2674.9,0.1303253]
[1730923435693,0.55,2675.6,2674.9,0.1303253]
[1730923435858,0.7575,2675.7,2674.9,0.1303253]
[1730923437455,1.04958281,2675.9,2675.0,0.8233]
[1730923437783,1.77105318,2676.1,2675.0,0.8233]
[1730923438091,1.8355711,2676.1,2675.0,0.8233]
[1730923438881,0.55,2676.0,2675.0,0.8233]
[1730923439080,0.23855711,2675.9,2675.0,0.8233]
[1730923439700,0.23855711,2675.9,2674.9,0.1303253]
[1730923441210,0.55,2675.0,2672.9,0.8233]
[1730923441372,0.31042218,2674.2,2672.9,0.8233]
[1730923444303,0.31042218,2674.2,2673.1,0.8201]
[1730923444488,0.31042218,2674.2,2673.3,0.8201]
[1730923445723,0.8202,2674.0,2672.6,0.56]
[1730923445902,0.8202,2674.0,2672.7,3.0]
[1730923446104,3.55,2673.9,2672.5,0.7584]
[1730923447027,4.90648316,2673.6,2672.2,0.1303253]
[1730923447195,0.55,2673.3,2672.2,0.1303253]
[1730923447528,0.55,2673.1,2672.2,0.1303253]
[1730923447682,0.8247,2673.2,2672.2,0.1303253]
[1730923448317,3.0,2673.9,2672.2,0.1303253]
[1730923448318,0.55,2673.8,2672.2,0.1303253]
[1730923448620,0.8172,2673.7,2672.2,0.1303253]
[1730923448915,0.55,2673.6,2672.2,0.1303253]
[1730923449120,0.56,2673.3,2672.2,0.1303253]
[1730923449414,0.55,2672.9,2672.2,0.1303253]
[1730923449809,0.7764,2672.8,2672.2,0.1303253]
[1730923449981,0.55,2672.7,2672.2,0.1303253]
[1730923450183,0.7764,2672.8,2672.2,0.1303253]
[1730923450384,0.55,2672.7,2672.2,0.1303253]
[1730923451187,0.7764,2672.8,2672.2,0.1303253]
[1730923452244,0.7651,2673.1,2672.2,0.1303253]
[1730923452623,0.7651,2673.8,2672.2,0.1303253]
[1730923453327,1.71574633,2673.8,2672.2,0.1303253]
[1730923453559,0.7651,2673.8,2672.2,0.1303253]
[1730923454067,0.7651,2673.8,2672.4,0.8064]
[1730923454281,0.94074571,2674.1,2672.6,0.8064]
[1730923454462,0.20303679,2674.0,2672.6,0.8064]
[1730923455130,0.20303679,2674.0,2672.8,0.8064]
[1730923455330,0.31042218,2674.2,2672.8,0.8064]
[1730923455761,0.31042218,2674.2,2672.9,0.55]
[1730923455962,0.31042218,2674.2,2673.0,0.7797]
[1730923456784,0.31042218,2674.2,2673.2,0.7797]
[1730923457076,0.31042218,2674.2,2673.0,0.7797]
[1730923458573,0.31042218,2674.2,2673.2,0.7797]
[1730923460086,0.8169,2674.1,2672.8,0.7797]
[1730923460295,0.55,2674.0,2672.9,0.38843774]
[1730923460596,0.55,2674.0,2673.3,0.336662]
[1730923462380,0.55,2673.8,2673.3,0.336662]
[1730923462895,3.0,2674.0,2673.3,0.336662]
[1730923462896,0.825,2673.5,2673.3,0.336662]
[1730923463268,0.55,2673.4,2673.3,0.336662]
[1730923463469,0.55,2673.4,2672.4,0.38861708]
[1730923463670,0.55,2673.4,2672.2,0.1303253]
[1730923465107,0.825,2673.5,2672.2,0.1303253]
[1730923465273,0.825,2673.5,2672.3,0.7872]
[1730923468629,1.7504175,2673.8,2672.4,0.55]
[1730923468828,1.7504175,2673.8,2672.5,0.55]
[1730923469029,0.825,2673.8,2672.5,0.55]
[1730923469234,0.825,2673.8,2672.6,0.7872]
[1730923470566,3.31042218,2674.2,2672.3,4.91530292]
[1730923470567,0.7774,2673.7,2672.3,4.91530292]
[1730923470711,0.7774,2673.7,2672.4,0.58043282]
[1730923470914,0.7774,2674.0,2672.5,0.7587]
[1730923471437,0.7774,2674.0,2672.6,0.01]
[1730923471643,0.7774,2674.0,2672.7,0.7587]
[1730923471863,0.7774,2674.8,2672.9,0.7587]
[1730923472010,0.94801416,2674.6,2673.0,0.55]
[1730923472211,0.7774,2674.8,2673.1,0.7587]
[1730923473317,3.7774,2674.8,2673.1,0.7587]
[1730923473523,3.7774,2674.8,2672.7,4.91530292]
[1730923473524,3.924,2674.6,2672.6,0.7764]
[1730923473861,0.8047,2674.1,2672.6,0.7764]
[1730923476577,0.8047,2674.1,2672.7,0.55]
[1730923476783,0.8047,2674.1,2672.9,0.55]
[1730923477225,0.8047,2674.1,2672.8,0.7804]
[1730923477612,0.8047,2674.1,2672.9,0.55]
[1730923478216,0.92108898,2674.4,2673.0,0.8125]
[1730923478432,0.06469375,2674.3,2673.0,0.8125]
[1730923479018,2.27964732,2674.9,2673.0,0.8125]
[1730923479267,0.06468773,2674.6,2673.1,0.55]
[1730923479565,0.06468773,2674.6,2673.2,0.8253]
[1730923480053,1.72964732,2674.9,2673.3,0.55]
[1730923480217,1.72964732,2674.9,2673.4,0.7994]
[1730923480730,0.789,2674.8,2673.0,0.7659]
[1730923481262,2.33190574,2674.6,2673.0,0.7659]
[1730923481650,0.789,2674.6,2673.0,0.7659]
[1730923482198,2.33190574,2674.6,2673.0,0.7659]
[1730923483200,1.54290574,2674.5,2673.0,0.7659]
[1730923483349,0.23319057,2674.4,2673.0,0.7659]
[1730923483550,0.779,2674.3,2673.0,0.7659]
[1730923483749,0.23319057,2674.4,2673.0,0.7659]
[1730923483750,0.55,2674.2,2673.0,0.7659]
[1730923483972,2.32190574,2674.2,2673.0,0.7659]
[1730923484249,4.54290574,2674.1,2673.0,0.7659]
[1730923484451,0.72645493,2674.0,2673.0,0.7659]
[1730923484956,0.7642,2673.9,2672.6,0.7792]
[1730923485286,5.30710574,2673.9,2672.6,0.7792]
[1730923485855,0.7642,2673.9,2672.6,0.7792]
[1730923486256,3.95533197,2674.1,2672.8,0.7743]
[1730923486560,0.23319057,2674.4,2673.4,0.7743]
[1730923486781,0.8219,2674.6,2673.4,0.7743]
[1730923487304,1.54290574,2674.5,2673.4,0.7743]
[1730923487449,1.54290574,2674.3,2673.4,0.7743]
[1730923488190,2.33480574,2674.1,2673.4,0.7743]
[1730923488391,0.42822394,2674.0,2673.4,0.7743]
[1730923489819,2.31720574,2673.9,2673.1,0.792]
[1730923490017,0.7592,2673.7,2672.6,0.792]
[1730923490176,2.30210574,2673.7,2672.6,0.792]
[1730923490609,5.3122174,2673.8,2672.6,0.792]
[1730923490781,2.3122174,2673.8,2672.6,0.792]
[1730923490983,0.76931166,2673.8,2672.6,0.792]
[1730923491321,0.30865174,2673.7,2672.6,0.792]
[1730923491503,0.30865174,2673.7,2672.3,0.02]
[1730923491504,0.30865174,2673.7,2672.7,1.3806]
[1730923491882,0.55,2673.5,2672.5,0.38771544]